bitfinex-derivatives/quotes_ETHF0:USTF0_20250116
["timestamp","ask_amount","ask_price","bid_price","bid_amount"]
[1737035662342,0.60024,3332.8,3332.7,10.17786248]
[1737035662641,0.60024,3332.8,3332.7,5.59916248]
[1737035663041,0.60023,3332.9,3332.7,5.59916248]
[1737035663444,0.60023,3332.9,3332.7,3.2078]
[1737035664539,1.50026,3333.6,3332.7,3.2078]
[1737035664737,0.60024,3332.9,3332.7,3.2078]
[1737035665432,1.50026,3333.6,3332.7,3.2078]
[1737035665433,0.60024,3332.8,3332.7,3.2078]
[1737035665636,0.60023,3332.9,3332.7,3.2078]
[1737035665837,0.60024,3332.8,3332.7,3.2078]
[1737035666149,0.60023,3332.9,3332.7,3.2078]
[1737035666444,0.60024,3332.8,3332.7,3.2078]
[1737035669141,4.70819,3333.3,3332.3,8.0894]
[1737035669339,4.70819,3333.3,3332.3,9.5654]
[1737035669340,0.6003,3332.5,3332.3,9.5654]
[1737035669846,0.60028,3332.6,3332.3,10.16571]
[1737035670048,0.60027,3332.7,3332.4,0.60031]
[1737035670240,0.60028,3332.6,3332.4,0.60031]
[1737035670950,0.60027,3332.7,3332.4,0.60031]
[1737035671249,0.60029,3332.6,3332.3,10.16573]
[1737035671545,0.60024,3332.8,3332.5,0.60029]
[1737035671746,0.60024,3332.8,3332.7,3.2078]
[1737035676542,0.60031,3332.4,3332.3,1.477]
[1737035676745,6.44371,3332.9,3332.2,3.2078]
[1737035676746,0.60033,3332.3,3332.2,3.2078]
[1737035677847,0.6003,3332.5,3332.2,3.2078]
[1737035678044,0.60027,3332.7,3332.5,0.60029]
[1737035678246,4.5453,3332.8,3332.7,0.60026]
[1737035678438,0.60027,3332.7,3332.6,0.60028]
[1737035678745,0.60027,3332.7,3332.6,3.80808]
[1737035678945,0.60027,3332.7,3332.6,3.2078]
[1737035679550,4.9431,3332.9,3332.2,3.2078]
[1737035679551,0.60033,3332.3,3332.2,3.2078]
[1737035680048,0.60028,3332.6,3332.2,3.2078]
[1737035680245,0.60028,3332.6,3332.5,0.6003]
[1737035680445,0.60024,3332.8,3332.6,0.60026]
[1737035680646,1.50071,3332.6,3331.8,6.0539]
[1737035681048,0.60039,3332.0,3331.9,0.60039]
[1737035681248,0.60039,3332.0,3331.8,5.17731]
[1737035681448,0.6004,3331.9,3331.8,4.5769]
[1737035681747,1.50079,3332.4,3331.6,4.6848]
[1737035681955,0.60042,3331.8,3331.6,5.28524]
[1737035683149,9.7537,3332.3,3331.6,3.42792795]
[1737035683457,0.60044,3331.7,3331.6,3.2078]
[1737035684252,0.60044,3331.7,3331.6,3.80826]
[1737035684553,4.7476,3332.0,3331.6,3.80826]
[1737035684757,0.60044,3331.8,3331.6,3.80826]
[1737035684953,0.60044,3331.7,3331.6,3.80826]
[1737035685154,0.60044,3331.7,3331.6,3.2078]
[1737035685354,0.60043,3331.8,3331.6,3.80825]
[1737035685559,0.60044,3331.7,3331.6,3.2078]
[1737035687254,0.60044,3331.7,3331.0,3.2078]
[1737035687255,0.60055,3331.1,3331.0,3.2078]
[1737035687950,4.7902,3331.5,3331.0,3.2078]
[1737035688345,0.60054,3331.2,3331.0,3.80835]
[1737035688551,0.60048,3331.5,3331.1,0.60055]
[1737035688750,4.6968,3331.6,3331.3,2.99708663]
[1737035688951,0.60049,3331.4,3331.3,2.99708663]
[1737035689554,0.60049,3331.4,3331.3,2.39658663]
[1737035689954,6.24859,3332.0,3331.3,2.39658663]
[1737035689955,4.7476,3332.0,3331.3,2.39658663]
[1737035690155,0.60036,3332.2,3332.0,0.60038]
[1737035691253,0.60039,3332.0,3331.9,2.99698663]
[1737035692757,6.09788,3332.5,3331.8,3.2078]
[1737035692758,4.5971,3332.5,3331.8,3.2078]
[1737035692958,0.6004,3331.9,3331.8,3.2078]
[1737035693263,4.7902,3332.3,3331.8,3.80822]
[1737035693561,0.6004,3332.0,3331.9,0.6004]
[1737035693752,0.6004,3332.0,3331.8,3.2078]
[1737035693753,0.6004,3332.0,3331.8,3.80821]
[1737035693953,0.6004,3332.0,3331.8,3.8082]
[1737035694158,0.6004,3332.0,3331.9,0.6004]
[1737035694556,0.6004,3332.0,3331.8,3.80821]
[1737035695157,4.7902,3332.3,3331.8,3.2078]
[1737035695359,0.6004,3331.9,3331.8,3.2078]
[1737035697555,7.18678663,3332.3,3331.4,3.80829]
[1737035697865,0.60046,3331.6,3331.4,3.2078]
[1737035698060,0.60046,3331.6,3331.4,3.80829]
[1737035698562,0.6004,3332.0,3331.8,0.60041]
[1737035698864,9.5851,3332.5,3331.8,5.60438663]
[1737035699065,0.60036,3332.2,3332.0,0.60037]
[1737035699265,9.5851,3332.5,3331.8,5.60438663]
[1737035699762,0.6004,3331.9,3331.8,3.2078]
[1737035699962,0.6004,3331.9,3331.8,3.80822]
[1737035700162,1.50079,3332.4,3331.8,5.60438663]
[1737035700362,0.60038,3332.1,3331.9,0.60039]
[1737035700953,0.60038,3332.1,3331.8,5.60438663]
[1737035700954,3.2078,3333.5,3332.0,1.475]
[1737035701156,3.2078,3333.5,3332.9,0.60022]
[1737035701157,0.60019,3333.1,3332.9,0.60022]
[1737035701357,0.60019,3333.1,3332.9,2.99680663]
[1737035701558,4.7755,3333.3,3332.9,2.39658663]
[1737035701756,4.7755,3333.3,3333.1,3.2078]
[1737035701955,0.60017,3333.2,3333.1,3.2078]
[1737035702468,0.60026,3332.7,3332.6,3.2078]
[1737035702662,6.2759,3333.3,3332.1,3.2078]
[1737035702863,1.50052,3333.0,3332.2,0.60035]
[1737035703064,0.60035,3332.2,3332.1,3.2078]
[1737035703266,0.60037,3332.1,3332.0,1.475]
[1737035703467,5.15477,3332.1,3332.0,1.475]
[1737035703662,4.5544,3332.1,3331.7,3.2078]
[1737035703966,0.60041,3331.9,3331.8,0.60041]
[1737035704167,0.60042,3331.8,3331.7,3.80823]
[1737035704370,0.60042,3331.9,3331.7,3.80823]
[1737035705164,0.60042,3331.8,3331.7,3.2078]
[1737035705467,5.19612,3331.8,3331.7,3.2078]
[1737035705676,4.5957,3331.8,3331.7,3.80824]
[1737035706062,4.8901,3332.5,3331.7,3.2078]
[1737035706265,3.2078,3333.0,3332.1,7.54063256]
[1737035706466,5.3147,3333.1,3332.9,3.2078]
[1737035706668,4.7145,3333.1,3333.0,0.60021]
[1737035706860,5.10464,3333.4,3333.2,0.60016]
[1737035707059,4.5045,3333.4,3332.9,6.03973256]
[1737035707771,4.7145,3333.7,3332.9,6.03973256]
[1737035707978,0.60014,3333.4,3333.3,0.60015]
[1737035708573,4.7145,3333.7,3333.0,4.9372]
[1737035708870,0.60018,3333.2,3333.1,0.60018]
[1737035709070,0.60021,3333.0,3332.9,3.80802]
[1737035709664,0.60021,3333.0,3332.9,3.2078]
[1737035709866,0.60021,3333.0,3332.9,3.80802]
[1737035710066,0.60021,3333.0,3332.9,3.2078]
[1737035710266,3.2078,3333.4,3332.1,4.90535245]
[1737035710469,0.60034,3332.3,3332.2,0.60033]
[1737035710768,0.60031,3332.5,3332.4,0.60031]
[1737035710970,15.6154,3332.9,3332.1,4.90535245]
[1737035711164,15.6154,3332.9,3332.3,0.60031]
[1737035711469,0.60035,3332.2,3332.1,4.6828]
[1737035711867,1.50066,3332.7,3332.1,4.6828]
[1737035712275,0.60035,3332.3,3332.1,5.28316]
[1737035712574,1.50066,3332.7,3332.1,4.6828]
[1737035712774,0.60035,3332.3,3332.1,4.6828]
[1737035712967,1.50066,3332.7,3332.1,4.6828]
[1737035713173,0.60035,3332.2,3332.1,5.28316]
[1737035713374,0.60035,3332.2,3332.1,4.6828]
[1737035713574,0.60035,3332.2,3332.1,3.2078]
[1737035715070,1.50066,3332.7,3332.1,3.2078]
[1737035715274,0.60034,3332.3,3332.2,0.60034]
[1737035715972,14.1148,3332.9,3332.5,0.60029]
[1737035716174,4.70815,3333.4,3332.5,3.2078]
[1737035716371,9.0327,3333.5,3333.0,3.2078]
[1737035716575,0.60019,3333.1,3333.0,3.808]
[1737035716775,0.60019,3333.1,3333.0,44.608]
[1737035716981,0.60019,3333.1,3333.0,44.0078]
[1737035717172,0.60019,3333.1,3333.0,3.2078]
[1737035717478,4.70816,3333.4,3332.5,3.2078]
[1737035717679,0.60028,3332.6,3332.5,3.2078]
[1737035718679,0.60028,3332.6,3332.5,3.8081]
[1737035719377,0.60028,3332.6,3332.5,3.2078]
[1737035723084,0.60028,3332.6,3332.5,3.8081]
[1737035723876,0.60028,3332.7,3332.6,0.60027]
[1737035724386,0.60028,3332.6,3332.5,3.80809]
[1737035724587,0.60028,3332.6,3332.5,3.2078]
[1737035727883,0.60035,3332.3,3332.2,0.60034]
[1737035728883,0.60035,3332.3,3332.1,3.2078]
[1737035728884,9.4578,3332.8,3332.1,3.2078]
[1737035729189,9.4578,3332.8,3332.6,0.60026]
[1737035729190,0.60028,3332.7,3332.6,0.60026]
[1737035729489,9.4578,3332.8,3332.1,3.2078]
[1737035729690,0.60035,3332.2,3332.1,3.80816]
[1737035730190,1.50069,3332.7,3332.1,3.2078]
[1737035730393,0.60034,3332.3,3332.2,0.60034]
[1737035730795,0.60035,3332.2,3332.1,3.80815]
[1737035731484,0.60035,3332.2,3332.1,3.2078]
[1737035736503,1.5007,3332.6,3332.1,3.2078]
[1737035736701,1.5007,3332.6,3332.1,3.80816]
[1737035736702,0.60035,3332.2,3332.1,3.80816]
[1737035737089,9.4578,3332.8,3332.1,3.2078]
[1737035737298,0.60028,3332.6,3332.1,5.60358636]
[1737035737496,10.95843,3332.8,3332.1,5.60358636]
[1737035737904,0.60034,3332.3,3332.2,0.60034]
[1737035738706,0.60035,3332.2,3332.1,3.2078]
[1737035740107,1.5007,3332.6,3332.1,3.2078]
[1737035740303,0.60034,3332.3,3332.2,0.60034]
[1737035740503,1.5007,3332.6,3332.1,5.60358636]
[1737035740702,0.60035,3332.2,3332.1,6.20394636]
[1737035741298,0.60035,3332.2,3332.1,3.2078]
[1737035744412,3.2078,3332.5,3331.7,3.2078]
[1737035744604,0.60042,3331.8,3331.7,3.2078]
[1737035745609,0.60047,3331.6,3331.5,0.60047]
[1737035745810,0.60048,3331.5,3331.4,1.473]
[1737035746106,0.60049,3331.4,3331.3,3.2078]
[1737035746310,9.91629,3331.4,3331.3,3.2078]
[1737035746815,3.2078,3331.9,3331.3,5.60358636]
[1737035747016,0.60049,3331.4,3331.3,3.2078]
[1737035750014,0.60057,3331.0,3330.9,3.2078]
[1737035751616,0.60062,3330.7,3330.6,0.60063]
[1737035751809,0.60064,3330.6,3330.5,3.80845]
[1737035752413,0.60064,3330.6,3330.5,3.2078]
[1737035754018,0.60057,3331.0,3330.8,0.60059]
[1737035754218,0.60059,3330.9,3330.8,2.99638636]
[1737035754419,0.60062,3330.7,3330.6,3.2078]
[1737035754711,0.60062,3330.7,3330.6,44.0078]
[1737035754913,4.7243,3331.1,3330.6,44.0078]
[1737035755421,0.60055,3331.1,3331.0,0.60057]
[1737035755817,3.2078,3331.5,3331.0,3.2078]
[1737035756014,9.4439,3332.0,3331.4,5.60358636]
[1737035756322,8.09020757,3332.3,3332.2,0.60035]
[1737035756517,8.09020757,3332.3,3332.2,3.80815]
[1737035757014,15.62588,3332.9,3332.2,3.2078]
[1737035757221,0.60033,3332.4,3332.2,3.80815]
[1737035757415,14.1253,3332.9,3332.2,3.2078]
[1737035757622,0.60033,3332.3,3332.2,3.2078]
[1737035758519,2.39578636,3332.3,3331.2,3.2078]
[1737035758820,0.60048,3331.5,3331.3,0.6005]
[1737035759217,0.60043,3331.8,3331.6,0.60045]
[1737035759419,12.8921,3332.2,3331.4,2.39578636]
[1737035759621,0.60041,3331.9,3331.7,0.60043]
[1737035760113,12.8921,3332.2,3331.4,2.39578636]
[1737035760316,0.60038,3332.1,3331.8,0.60042]
[1737035760516,12.8921,3332.2,3331.7,2.39578636]
[1737035760717,12.8921,3332.2,3331.5,3.2078]
[1737035760913,0.60046,3331.6,3331.5,3.2078]
[1737035761112,0.60051,3331.3,3331.2,1.472]
[1737035761521,9.2407,3331.5,3330.7,1.472]
[1737035761522,0.6006,3330.8,3330.7,1.472]
[1737035761712,9.66306,3331.4,3330.6,4.71050499]
[1737035761919,0.60062,3330.7,3330.6,4.71050499]
[1737035762319,0.60062,3330.7,3330.5,6.78755]
[1737035762615,0.60063,3330.7,3330.5,6.78754]
[1737035763412,0.60063,3330.7,3330.5,6.78755]
[1737035763626,8.1618,3331.4,3330.4,1.472]
[1737035763921,3.2078,3331.0,3330.4,1.472]
[1737035764119,0.60065,3330.6,3330.4,2.07266]
[1737035764723,0.60066,3330.5,3330.4,1.472]
[1737035765023,0.60071,3330.2,3330.1,3.2078]
[1737035765322,0.60075,3330.0,3329.9,0.21981271]
[1737035765713,0.60073,3330.2,3329.9,0.82057271]
[1737035765917,7.9262,3330.6,3329.9,0.82057271]
[1737035766115,7.9262,3330.6,3329.8,1.472]
[1737035766315,0.60076,3330.0,3329.8,2.07278]
[1737035766715,1.50165,3330.5,3329.8,0.60078]
[1737035766920,0.60076,3329.9,3329.8,1.472]
[1737035767122,1.50165,3330.5,3329.8,2.07278]
[1737035767123,0.60075,3330.0,3329.8,2.07278]
[1737035767425,0.60068,3330.4,3330.1,0.60072]
[1737035767626,7.9262,3330.6,3330.1,0.60072]
[1737035767818,0.60066,3330.5,3330.0,0.60074]
[1737035768019,0.6007,3330.3,3330.0,0.60074]
[1737035768224,0.60068,3330.4,3329.9,0.60076]
[1737035768418,7.9262,3330.6,3329.8,1.472]
[1737035768618,0.60069,3330.4,3330.1,0.60072]
[1737035768926,7.9262,3330.6,3329.8,1.472]
[1737035769118,0.60068,3330.4,3330.1,0.60071]
[1737035769423,0.60068,3330.4,3330.2,0.6007]
[1737035769725,0.60068,3330.4,3330.1,0.60072]
[1737035770318,7.9262,3330.6,3329.8,1.472]
[1737035770515,0.60067,3330.4,3329.8,1.472]
[1737035770724,0.60067,3330.4,3330.2,0.60071]
[1737035771224,0.60067,3330.4,3330.1,0.60072]
[1737035771421,1.50165,3330.5,3329.8,1.472]
[1737035771628,0.60076,3329.9,3329.8,1.472]
[1737035772228,0.60078,3329.8,3329.6,15.09091]
[1737035772424,4.9456,3330.3,3329.7,0.60079]
[1737035772425,0.60077,3329.9,3329.7,0.60079]
[1737035772618,0.60077,3329.9,3329.6,15.09091]
[1737035773020,4.9456,3330.3,3329.6,14.4901]
[1737035773226,4.9456,3330.3,3329.6,9.5947]
[1737035773227,0.60071,3330.2,3329.6,9.5947]
[1737035773425,0.60071,3330.2,3330.0,0.60074]
[1737035773627,4.9456,3330.3,3329.7,7.72649402]
[1737035773829,0.60071,3330.2,3330.0,0.60074]
[1737035774134,4.9456,3330.3,3329.7,7.72649402]
[1737035774433,0.60066,3330.5,3330.3,0.60068]
[1737035774633,0.60066,3330.5,3329.7,4.8937]
[1737035774634,1.50165,3330.5,3329.7,4.8937]
[1737035774838,0.60075,3330.0,3329.8,0.60078]
[1737035775022,0.60076,3329.9,3329.8,0.60078]
[1737035775226,9.2803,3330.4,3329.7,4.8937]
[1737035775421,0.6008,3329.7,3329.6,4.6798]
[1737035776227,0.60079,3329.8,3329.6,5.28062]
[1737035776419,3.2078,3330.2,3329.7,0.6008]
[1737035776420,0.60078,3329.9,3329.7,0.6008]
[1737035776623,0.6008,3329.7,3329.6,4.6798]
[1737035776836,0.60079,3329.8,3329.6,5.28062]
[1737035777132,0.60077,3329.9,3329.5,0.60084]
[1737035777333,0.60077,3329.9,3329.7,0.6008]
[1737035777535,3.2078,3330.2,3329.4,4.30479402]
[1737035777826,3.2078,3330.2,3329.5,4.6841]
[1737035778029,0.60077,3329.9,3329.7,0.60079]
[1737035778327,3.2078,3330.2,3330.1,0.60073]
[1737035778629,3.80852,3330.2,3330.1,0.60073]
[1737035778831,3.80852,3330.2,3329.7,4.7638]
[1737035779022,3.80852,3330.2,3330.0,0.60073]
[1737035779227,3.2078,3330.2,3330.1,0.60073]
[1737035779432,3.2078,3330.6,3330.1,3.80853]
[1737035779634,3.2078,3330.6,3330.5,3.43345402]
[1737035780327,3.80844,3330.6,3330.5,0.60066]
[1737035780532,3.2078,3330.6,3330.5,0.60066]
[1737035780729,3.2078,3330.6,3330.4,1.472]
[1737035780934,0.60066,3330.5,3330.4,1.472]
[1737035781142,5.53866,3330.5,3330.4,1.472]
[1737035781324,0.60072,3330.2,3330.0,0.60074]
[1737035781837,0.6007,3330.3,3329.8,1.472]
[1737035782033,4.516,3330.4,3329.8,1.472]
[1737035782338,4.516,3330.4,3330.0,0.60073]
[1737035782339,0.60072,3330.2,3330.0,0.60073]
[1737035782536,0.60072,3330.2,3329.8,1.472]
[1737035782830,0.60072,3330.2,3330.1,0.60073]
[1737035783334,0.60072,3330.2,3329.8,1.472]
[1737035783532,5.11668,3330.4,3330.3,0.60069]
[1737035783734,4.516,3330.4,3330.2,0.6007]
[1737035783934,0.6007,3330.3,3330.2,0.60071]
[1737035784532,4.516,3330.4,3330.3,0.60069]
[1737035784730,5.53867,3330.5,3330.3,0.60068]
[1737035784935,3.2078,3330.6,3330.1,6.04059402]
[1737035785134,3.2078,3331.2,3330.5,2.83279402]
[1737035785335,3.80834,3331.2,3331.1,0.60055]
[1737035785528,3.2078,3331.2,3330.7,1.47]
[1737035785730,3.2078,3331.2,3331.1,0.60055]
[1737035785933,3.2078,3331.8,3331.1,0.60055]
[1737035786242,10.83304039,3332.5,3332.0,0.60039]
[1737035786243,7.7604,3332.2,3332.0,0.60039]
[1737035786435,8.36075,3332.2,3332.0,0.60039]
[1737035786739,4.7299,3332.4,3331.8,3.2078]
[1737035786934,8.09020757,3332.6,3332.5,0.6003]
[1737035787749,3.2078,3332.7,3332.6,0.60028]
[1737035787943,3.2078,3332.7,3332.6,2.07028]
[1737035788647,5.32089,3333.1,3332.6,1.47]
[1737035788852,5.32089,3333.1,3332.7,0.60024]
[1737035789052,5.32089,3333.1,3332.6,1.47]
[1737035789242,5.32089,3333.1,3332.8,0.60024]
[1737035789547,0.60022,3333.0,3332.7,0.60025]
[1737035790050,4.7207,3333.1,3332.4,2.83279402]
[1737035790349,0.60028,3332.6,3332.5,1.47]
[1737035790544,0.60025,3332.8,3332.5,2.07029]
[1737035791046,3.80803,3332.9,3332.5,1.47]
[1737035791242,3.2078,3332.9,3332.5,1.47]
[1737035791448,5.32089,3333.1,3332.8,0.60024]
[1737035791649,4.7207,3333.1,3332.9,0.60022]
[1737035791952,3.2078,3333.3,3333.2,0.60017]
[1737035792154,3.2078,3333.3,3332.8,2.83279402]
[1737035792343,3.80797,3333.3,3332.9,0.60022]
[1737035792543,3.2078,3333.3,3332.7,4.6778]
[1737035792748,9.2889,3333.2,3332.7,4.6778]
[1737035792947,0.60023,3332.9,3332.7,4.6778]
[1737035793144,9.2889,3333.2,3332.7,4.6778]
[1737035793655,0.60023,3332.9,3332.7,4.6778]
[1737035793949,0.60021,3333.0,3332.7,5.27806]
[1737035794747,9.2889,3333.2,3332.7,4.6778]
[1737035794946,0.60022,3333.0,3332.7,4.6778]
[1737035795557,9.2889,3333.2,3332.7,4.6778]
[1737035795747,0.60024,3332.8,3332.7,3.2078]
[1737035796557,9.2889,3333.2,3332.7,3.2078]
[1737035796750,9.2889,3333.2,3333.0,0.60019]
[1737035796945,9.2889,3333.2,3333.1,0.60019]
[1737035797251,1.50009,3334.0,3333.2,0.60017]
[1737035797252,0.60013,3333.5,3333.2,0.60017]
[1737035797450,14.1243,3333.9,3333.1,3.2078]
[1737035797647,0.60007,3333.8,3333.5,0.6001]
[1737035797859,0.60007,3333.8,3333.6,0.6001]
[1737035798456,17.3321,3333.9,3333.8,0.60006]
[1737035798457,9.4104,3333.9,3333.8,0.60006]
[1737035799160,3.2078,3334.3,3333.6,2.83279402]
[1737035799461,0.6,3334.2,3334.0,0.60001]
[1737035799757,0.60005,3333.9,3333.7,0.60007]
[1737035800056,3.2078,3334.3,3333.6,4.5946]
[1737035800460,3.2078,3334.3,3333.5,3.2078]
[1737035800757,0.6001,3333.6,3333.5,3.80792]
[1737035801456,0.6001,3333.6,3333.5,3.2078]
[1737035803157,0.60015,3333.3,3333.2,1.469]
[1737035803456,13.7502,3333.5,3333.2,2.06916]
[1737035803859,0.60014,3333.4,3333.2,2.06916]
[1737035804362,0.60015,3333.4,3333.2,2.06916]
[1737035804562,13.7502,3333.5,3333.2,2.06916]
[1737035804756,8.9895,3333.5,3333.4,0.60013]
[1737035805261,3.2078,3333.7,3333.6,0.6001]
[1737035805461,12.1973,3334.1,3333.9,0.60003]
[1737035805662,0.60003,3334.0,3333.9,0.60003]
[1737035806159,12.1973,3334.1,3333.6,2.83279402]
[1737035806358,3.2078,3334.1,3334.0,0.60003]
[1737035806654,3.07178134,3335.5,3334.0,0.60003]
[1737035806655,3.2078,3335.1,3334.0,2.83279402]
[1737035806857,1.49937,3335.6,3334.9,2.83279402]
[1737035806858,14.65189,3335.4,3334.9,2.83279402]
[1737035807161,3.2078,3335.6,3335.3,2.83279402]
[1737035807558,3.2078,3335.6,3335.5,0.59976]
[1737035809165,3.2078,3335.6,3335.3,2.83279402]
[1737035809371,3.2078,3335.6,3335.5,0.59976]
[1737035809559,3.80754,3335.6,3335.4,0.59977]
[1737035809751,3.2078,3335.6,3335.5,0.59976]
[1737035810965,0.59971,3335.8,3335.5,0.59976]
[1737035811765,0.59973,3335.7,3335.4,0.59976]
[1737035812062,4.7791,3335.9,3335.3,2.83279402]
[1737035812564,7.8635,3336.2,3336.0,0.59965]
[1737035812764,4.6557,3336.2,3336.0,0.59965]
[1737035813162,4.6557,3336.2,3335.7,2.83279402]
[1737035813163,4.6557,3336.2,3335.8,0.5997]
[1737035813355,0.59966,3336.1,3335.8,0.5997]
[1737035813962,4.6557,3336.2,3335.4,3.2078]
[1737035814357,0.59968,3336.0,3335.7,0.59971]
[1737035815164,0.5997,3335.9,3335.6,0.59973]
[1737035815365,7.8635,3336.2,3335.4,3.2078]
[1737035815564,0.5997,3335.9,3335.5,0.59974]
[1737035815760,0.59967,3336.0,3335.7,0.59971]
[1737035816362,0.59965,3336.1,3335.8,0.59969]
[1737035816561,0.59967,3336.0,3335.5,1.467]
[1737035816866,0.59968,3335.9,3335.7,0.59971]
[1737035817063,7.8635,3336.2,3335.6,0.59973]
[1737035817265,7.8635,3336.2,3335.5,1.467]
[1737035817768,0.59969,3335.9,3335.6,0.59974]
[1737035817969,0.59969,3335.9,3335.7,0.59972]
[1737035818162,7.8635,3336.2,3335.5,1.467]
[1737035818364,0.5997,3335.9,3335.5,1.467]
[1737035818565,7.8635,3336.2,3335.6,0.59974]
[1737035818764,0.59971,3335.8,3335.6,0.59974]
[1737035818965,7.8635,3336.2,3335.5,1.467]
[1737035819161,0.59968,3336.0,3335.5,1.467]
[1737035819467,7.8635,3336.2,3335.5,1.467]
[1737035819665,0.5997,3335.9,3335.6,0.59973]
[1737035820365,7.8635,3336.2,3335.5,1.467]
[1737035820561,0.59969,3335.9,3335.5,1.467]
[1737035820768,0.5997,3335.8,3335.6,0.59973]
[1737035820968,3.2078,3335.7,3335.0,3.2078]
[1737035821170,12.4979,3335.7,3335.0,3.2078]
[1737035821372,0.5998,3335.3,3335.0,3.2078]
[1737035821568,0.59983,3335.1,3335.0,3.2078]
[1737035821766,0.59985,3335.0,3334.9,1.466]
[1737035822671,0.59992,3334.6,3334.5,3.2078]
[1737035822876,4.6446,3334.9,3334.5,3.2078]
[1737035823177,4.6446,3334.9,3334.4,1.466]
[1737035823178,3.2078,3334.8,3334.4,1.466]
[1737035823370,0.59994,3334.5,3334.4,1.466]
[1737035823571,7.7779,3334.8,3334.0,3.43072916]
[1737035823771,0.59998,3334.3,3334.1,42.866]
[1737035823973,12.2935,3334.8,3334.1,42.266]
[1737035824176,0.59999,3334.3,3334.1,1.466]
[1737035824366,0.59999,3334.2,3334.1,1.466]
[1737035824776,1.49976,3334.7,3334.0,41.02292916]
[1737035824777,0.60001,3334.1,3334.0,40.8]
[1737035824975,0.6,3334.2,3334.0,41.40003]
[1737035825175,3.2078,3334.4,3333.9,1.466]
[1737035825477,0.60003,3334.0,3333.9,1.466]
[1737035826185,0.60003,3334.0,3333.9,1.69336545]
[1737035826479,3.2078,3334.4,3333.9,1.69336545]
[1737035826781,0.60002,3334.1,3333.9,1.69336545]
[1737035826966,0.60002,3334.1,3333.9,2.29340545]
[1737035827276,0.60002,3334.1,3333.9,1.69336545]
[1737035827874,3.2078,3334.4,3333.9,1.69336545]
[1737035828070,0.60003,3334.0,3333.9,1.466]
[1737035829879,3.2078,3334.4,3333.8,1.467]
[1737035830080,0.60004,3334.0,3333.8,2.06706]
[1737035830984,0.60002,3334.1,3333.8,2.06706]
[1737035831680,0.6,3334.2,3333.9,0.60004]
[1737035831878,3.2078,3334.4,3333.9,2.83279402]
[1737035832071,0.59999,3334.2,3334.0,0.60002]
[1737035832471,0.60001,3334.1,3333.9,3.43283402]
[1737035832677,0.60004,3334.0,3333.8,1.467]
[1737035832981,3.2078,3334.4,3333.8,1.467]
[1737035833287,0.60002,3334.1,3333.8,2.06705]
[1737035833473,3.2078,3334.4,3333.8,2.06705]
[1737035833474,0.60003,3334.0,3333.8,2.06705]
[1737035833782,3.2078,3334.4,3333.8,1.467]
[1737035833976,0.6,3334.2,3334.0,0.60002]
[1737035834379,3.2078,3334.4,3333.8,1.467]
[1737035834580,3.80776,3334.4,3334.2,0.59998]
[1737035834780,3.2078,3334.4,3333.8,1.467]
[1737035834981,3.2078,3334.4,3334.2,0.59998]
[1737035835180,3.80776,3334.4,3334.2,0.59998]
[1737035835482,3.2078,3334.4,3333.7,41.02005285]
[1737035835677,0.60008,3333.7,3333.6,3.2078]
[1737035835984,0.60019,3333.1,3333.0,3.2078]
[1737035836179,0.60018,3333.2,3333.0,3.808]
[1737035836379,0.60019,3333.1,3333.0,3.2078]
[1737035836678,0.60022,3332.9,3332.8,4.71050499]
[1737035836883,0.60022,3332.9,3332.5,1.467]
[1737035836884,0.60024,3332.9,3332.5,1.467]
[1737035837084,0.60024,3332.9,3332.7,0.60025]
[1737035837387,0.60027,3332.7,3332.5,2.06729]
[1737035837589,4.6609,3332.8,3332.5,1.467]
[1737035837787,0.60028,3332.6,3332.5,1.467]
[1737035838480,3.2078,3332.7,3332.2,1.467]
[1737035838786,0.60033,3332.3,3332.2,1.467]
[1737035839389,0.60039,3332.0,3331.9,3.2078]
[1737035839587,0.60037,3332.1,3331.9,3.2078]
[1737035839883,0.60037,3332.1,3331.9,3.80819]
[1737035840287,7.7699,3332.7,3331.9,3.2078]
[1737035840483,0.6003,3332.5,3332.3,0.60032]
[1737035840983,0.60029,3332.6,3332.4,0.60031]
[1737035841178,4.5621,3332.7,3331.9,44.0078]
[1737035841380,0.60031,3332.5,3332.3,0.60032]
[1737035841579,4.6609,3332.8,3332.7,0.60026]
[1737035841789,4.6609,3332.8,3332.6,0.60027]
[1737035841989,0.60033,3332.4,3332.2,0.60034]
[1737035842188,0.60033,3332.4,3332.3,40.8]
[1737035844590,3.2078,3332.7,3331.9,3.2078]
[1737035844791,0.60031,3332.5,3332.0,2.83279402]
[1737035844987,0.6003,3332.5,3332.4,0.60031]
[1737035845192,0.6003,3332.5,3332.4,40.8]
[1737035845591,3.2078,3332.7,3332.5,0.60029]
[1737035845592,0.6003,3332.6,3332.5,0.60029]
[1737035845786,0.6003,3332.5,3332.4,41.40031]
[1737035845990,0.6003,3332.5,3332.4,40.8]
[1737035846390,4.70849,3332.7,3332.0,1.465]
[1737035846591,0.60037,3332.1,3332.0,2.06538]
[1737035846891,0.60037,3332.1,3332.0,1.465]
[1737035847094,0.60037,3332.1,3332.0,2.06539]
[1737035847483,0.60037,3332.1,3332.0,1.465]
[1737035847889,1.50082,3332.4,3331.9,3.8082]
[1737035848092,0.60039,3332.0,3331.9,3.2078]
[1737035848696,1.50078,3332.5,3331.9,3.2078]